[Event "*** Titled Tuesday Blitz"]
[Site "Chess.com"]
[Date "2020.04.28"]
[Round "7"]
[White "Tashik"]
[Black "francyIM"]
[Result "0-1"]
[WhiteElo "2541"]
[BlackElo "2716"]
[TimeControl "180+1"]
[EndTime "11:17:34 PDT"]
[Termination "francyIM won by checkmate"]

1. c4 {[%clk 0:03:00.9]} 1... Nf6 {[%clk 0:02:57.7]} 2. Nc3 {[%clk 0:03:00.6]}
2... e5 {[%clk 0:02:54.1]} 3. Nf3 {[%clk 0:03:00.6]} 3... Nc6 {[%clk 0:02:52.1]}
4. e4 {[%clk 0:03:01.1]} 4... Bc5 {[%clk 0:02:51.4]} 5. Nxe5 {[%clk 0:03:00.8]}
5... Nxe5 {[%clk 0:02:52.3]} 6. d4 {[%clk 0:03:00.8]} 6... Bb4 {[%clk
0:02:52.8]} 7. dxe5 {[%clk 0:03:01.3]} 7... Nxe4 {[%clk 0:02:52.6]} 8. Qf3
{[%clk 0:03:01.9]} 8... Nxc3 {[%clk 0:02:52.7]} 9. bxc3 {[%clk 0:03:02.5]} 9...
Ba5 {[%clk 0:02:53.3]} 10. Qg3 {[%clk 0:02:53.4]} 10... Qe7 {[%clk 0:02:45.5]}
11. Be2 {[%clk 0:02:36.6]} 11... O-O {[%clk 0:02:42.9]} 12. O-O {[%clk
0:02:26.5]} 12... d6 {[%clk 0:02:34.3]} 13. Ba3 {[%clk 0:01:45.2]} 13... Re8
{[%clk 0:02:29.2]} 14. f4 {[%clk 0:01:38.9]} 14... c5 {[%clk 0:02:21.3]} 15. Bh5
{[%clk 0:01:28.1]} 15... dxe5 {[%clk 0:02:14.5]} 16. fxe5 {[%clk 0:01:26.3]}
16... Be6 {[%clk 0:02:14.7]} 17. Rf4 {[%clk 0:01:13.5]} 17... g6 {[%clk
0:02:00.3]} 18. Raf1 {[%clk 0:01:09.3]} 18... Kh8 {[%clk 0:01:50.1]} 19. Bg4
{[%clk 0:01:08.8]} 19... Bxg4 {[%clk 0:01:33]} 20. Qxg4 {[%clk 0:00:53.5]} 20...
Bxc3 {[%clk 0:01:23.9]} 21. Rxf7 {[%clk 0:00:47.6]} 21... Bd4+ {[%clk
0:01:18.7]} 22. Kh1 {[%clk 0:00:44.9]} 22... Qxe5 {[%clk 0:01:18.2]} 23. Bc1
{[%clk 0:00:24.3]} 23... Re7 {[%clk 0:01:00.6]} 24. Qh4 {[%clk 0:00:11]} 24...
Rxf7 {[%clk 0:00:50.4]} 25. Rxf7 {[%clk 0:00:11.9]} 25... h5 {[%clk 0:00:50]}
26. h3 {[%clk 0:00:10.7]} 26... Re8 {[%clk 0:00:48.3]} 27. Bd2 {[%clk
0:00:09.3]} 27... Kg8 {[%clk 0:00:44.9]} 28. Rxb7 {[%clk 0:00:07.7]} 28... Rf8
{[%clk 0:00:42.1]} 29. Qg5 {[%clk 0:00:05.9]} 29... Rf1# {[%clk 0:00:41.2]} 0-1

[Event "*** Titled Tuesday Blitz"]
[Site "Chess.com"]
[Date "2020.04.28"]
[Round "7"]
[White "Popopuiyt"]
[Black "RodinMihail"]
[Result "0-1"]
[WhiteElo "2339"]
[BlackElo "2530"]
[TimeControl "180+1"]
[EndTime "11:17:37 PDT"]
[Termination "RodinMihail won by resignation"]

1. d4 {[%clk 0:03:00.9]} 1... d5 {[%clk 0:03:00.1]} 2. c4 {[%clk 0:03:01.2]}
2... e6 {[%clk 0:03:00.3]} 3. Nc3 {[%clk 0:03:01.4]} 3... c6 {[%clk 0:03:00.6]}
4. Nf3 {[%clk 0:03:00.7]} 4... Nf6 {[%clk 0:03:00.3]} 5. Bg5 {[%clk 0:03:01.2]}
5... dxc4 {[%clk 0:03:00.2]} 6. e4 {[%clk 0:02:59.9]} 6... b5 {[%clk 0:03:00.7]}
7. e5 {[%clk 0:02:59.9]} 7... h6 {[%clk 0:03:01.2]} 8. Bh4 {[%clk 0:03:00.4]}
8... g5 {[%clk 0:03:01.9]} 9. Nxg5 {[%clk 0:03:01]} 9... hxg5 {[%clk 0:03:02.3]}
10. Bxg5 {[%clk 0:03:01.6]} 10... Nbd7 {[%clk 0:03:02.6]} 11. g3 {[%clk
0:03:01.7]} 11... Qa5 {[%clk 0:03:03]} 12. exf6 {[%clk 0:02:59.5]} 12... Ba6
{[%clk 0:03:03.3]} 13. Bd2 {[%clk 0:02:52.9]} 13... O-O-O {[%clk 0:02:58.8]} 14.
Be2 {[%clk 0:02:50.7]} 14... Qb6 {[%clk 0:02:51.2]} 15. Be3 {[%clk 0:02:46.3]}
15... c5 {[%clk 0:02:50.7]} 16. d5 {[%clk 0:02:43.7]} 16... Bb7 {[%clk
0:02:42.3]} 17. O-O {[%clk 0:02:35.5]} 17... Nxf6 {[%clk 0:02:37.7]} 18. Bf3
{[%clk 0:02:25.8]} 18... Nxd5 {[%clk 0:02:27.6]} 19. Nxd5 {[%clk 0:02:22.2]}
19... Bxd5 {[%clk 0:02:26.7]} 20. Bxd5 {[%clk 0:02:18.1]} 20... exd5 {[%clk
0:02:22.3]} 21. a4 {[%clk 0:02:13.6]} 21... b4 {[%clk 0:02:13.9]} 22. a5 {[%clk
0:02:13.6]} 22... Qe6 {[%clk 0:02:04]} 23. Qa4 {[%clk 0:01:59]} 23... Qd7 {[%clk
0:01:48.7]} 24. Qc2 {[%clk 0:01:34.8]} 24... d4 {[%clk 0:01:37.5]} 25. Bf4
{[%clk 0:01:28.7]} 25... Qd5 {[%clk 0:01:37.3]} 26. f3 {[%clk 0:01:19.9]} 26...
Bd6 {[%clk 0:01:33]} 27. Bxd6 {[%clk 0:01:16.1]} 27... Rxd6 {[%clk 0:01:32.6]}
28. Rac1 {[%clk 0:00:52.8]} 28... c3 {[%clk 0:01:28.4]} 29. bxc3 {[%clk
0:00:52.4]} 29... bxc3 {[%clk 0:01:27.7]} 30. Rb1 {[%clk 0:00:50.3]} 30... Rf6
{[%clk 0:00:56.3]} 31. Qe2 {[%clk 0:00:29.4]} 31... d3 {[%clk 0:00:51]} 32. Qe3
{[%clk 0:00:28.5]} 32... Qd4 {[%clk 0:00:50.6]} 33. Qxd4 {[%clk 0:00:27.8]}
33... cxd4 {[%clk 0:00:50.6]} 34. Rb4 {[%clk 0:00:28.2]} 34... Rd6 {[%clk
0:00:48.5]} 35. Rfb1 {[%clk 0:00:23.1]} 35... Kd7 {[%clk 0:00:47.6]} 0-1

[Event "*** Titled Tuesday Blitz"]
[Site "Chess.com"]
[Date "2020.04.28"]
[Round "7"]
[White "CookiesAndIceCream"]
[Black "2008king"]
[Result "1-0"]
[WhiteElo "2362"]
[BlackElo "2068"]
[TimeControl "180+1"]
[EndTime "11:17:37 PDT"]
[Termination "CookiesAndIceCream won by resignation"]

1. e4 {[%clk 0:03:00.9]} 1... e5 {[%clk 0:02:59.3]} 2. Nf3 {[%clk 0:02:58.8]}
2... Nc6 {[%clk 0:02:59.5]} 3. Nc3 {[%clk 0:02:59.3]} 3... Nf6 {[%clk
0:02:58.5]} 4. Bb5 {[%clk 0:02:59.8]} 4... Nd4 {[%clk 0:02:56.8]} 5. Bc4 {[%clk
0:02:59.6]} 5... Nxf3+ {[%clk 0:02:54]} 6. gxf3 {[%clk 0:02:59.5]} 6... Bc5
{[%clk 0:02:51.9]} 7. d3 {[%clk 0:02:55.6]} 7... d6 {[%clk 0:02:50.9]} 8. Be3
{[%clk 0:02:54.1]} 8... Bxe3 {[%clk 0:02:41.7]} 9. fxe3 {[%clk 0:02:53.9]} 9...
Be6 {[%clk 0:02:39.9]} 10. Bb3 {[%clk 0:02:50.4]} 10... Nd7 {[%clk 0:02:34.4]}
11. Qd2 {[%clk 0:02:25.8]} 11... Qh4+ {[%clk 0:02:32.9]} 12. Qf2 {[%clk
0:02:23.6]} 12... Qxf2+ {[%clk 0:02:33.1]} 13. Kxf2 {[%clk 0:02:23.4]} 13...
O-O-O {[%clk 0:02:33.8]} 14. d4 {[%clk 0:02:12.3]} 14... Bxb3 {[%clk 0:02:23.4]}
15. axb3 {[%clk 0:02:11.9]} 15... a6 {[%clk 0:02:23.9]} 16. Rag1 {[%clk
0:01:57.4]} 16... g6 {[%clk 0:02:19.3]} 17. h4 {[%clk 0:01:52.2]} 17... h5
{[%clk 0:02:18.5]} 18. Rg5 {[%clk 0:01:46.1]} 18... Rhg8 {[%clk 0:02:16.2]} 19.
Rhg1 {[%clk 0:01:44.7]} 19... c6 {[%clk 0:02:10.8]} 20. f4 {[%clk 0:01:43]}
20... Rde8 {[%clk 0:02:05.5]} 21. f5 {[%clk 0:01:36.6]} 21... Nf8 {[%clk
0:02:00]} 22. Rxh5 {[%clk 0:01:22]} 22... exd4 {[%clk 0:01:05.1]} 23. exd4
{[%clk 0:01:20.8]} 23... c5 {[%clk 0:01:04.2]} 24. fxg6 {[%clk 0:00:57.3]} 24...
fxg6 {[%clk 0:00:56.3]} 25. dxc5 {[%clk 0:00:54.4]} 25... gxh5 {[%clk
0:00:52.4]} 26. Rxg8 {[%clk 0:00:50.2]} 26... dxc5 {[%clk 0:00:52.7]} 27. Nd5
{[%clk 0:00:28]} 27... Rd8 {[%clk 0:00:40.5]} 28. Rg5 {[%clk 0:00:21.5]} 28...
Ne6 {[%clk 0:00:25]} 29. Rxh5 {[%clk 0:00:20.2]} 29... Rf8+ {[%clk 0:00:25.1]}
30. Rf5 {[%clk 0:00:20.4]} 30... Rg8 {[%clk 0:00:24.1]} 31. Ne7+ {[%clk
0:00:18]} 1-0

[Event "*** Titled Tuesday Blitz"]
[Site "Chess.com"]
[Date "2020.04.28"]
[Round "7"]
[White "ItsCheckM8Mate"]
[Black "zajka-molotok"]
[Result "1-0"]
[WhiteElo "2261"]
[BlackElo "2371"]
[TimeControl "180+1"]
[EndTime "11:17:39 PDT"]
[Termination "ItsCheckM8Mate won by checkmate"]

1. e4 {[%clk 0:03:00.9]} 1... e5 {[%clk 0:02:58.6]} 2. Nf3 {[%clk 0:03:01]} 2...
Nc6 {[%clk 0:02:58.6]} 3. Bb5 {[%clk 0:03:00.7]} 3... a6 {[%clk 0:02:58.7]} 4.
Ba4 {[%clk 0:03:00.6]} 4... b5 {[%clk 0:02:58.9]} 5. Bb3 {[%clk 0:02:59.7]} 5...
Na5 {[%clk 0:02:59.5]} 6. Nxe5 {[%clk 0:02:43.6]} 6... Nxb3 {[%clk 0:02:58.4]}
7. axb3 {[%clk 0:02:42.2]} 7... Qe7 {[%clk 0:02:58.4]} 8. d4 {[%clk 0:02:38.7]}
8... d6 {[%clk 0:02:55.9]} 9. Nf3 {[%clk 0:02:38.5]} 9... Qxe4+ {[%clk
0:02:54.8]} 10. Be3 {[%clk 0:02:37.2]} 10... Bf5 {[%clk 0:02:53.7]} 11. c3
{[%clk 0:02:26.5]} 11... Qd3 {[%clk 0:02:41.9]} 12. Qxd3 {[%clk 0:02:22.7]}
12... Bxd3 {[%clk 0:02:40.1]} 13. b4 {[%clk 0:02:21.8]} 13... Ne7 {[%clk
0:02:31.3]} 14. Kd2 {[%clk 0:02:03.4]} 14... Be4 {[%clk 0:02:30.6]} 15. Ke2
{[%clk 0:02:01.2]} 15... Nd5 {[%clk 0:02:25]} 16. Nbd2 {[%clk 0:02:00.6]} 16...
Bg6 {[%clk 0:02:23.5]} 17. Ra5 {[%clk 0:01:57.1]} 17... c6 {[%clk 0:02:07.7]}
18. Rha1 {[%clk 0:01:56.2]} 18... Nc7 {[%clk 0:02:07.8]} 19. d5 {[%clk
0:01:53.7]} 19... Kd7 {[%clk 0:01:42.8]} 20. Nd4 {[%clk 0:01:24.2]} 20... c5
{[%clk 0:01:17]} 21. Nxb5 {[%clk 0:01:12.8]} 21... Nxd5 {[%clk 0:01:13.3]} 22.
Rxa6 {[%clk 0:01:10.3]} 22... Rxa6 {[%clk 0:01:12.5]} 23. Rxa6 {[%clk
0:01:10.2]} 23... cxb4 {[%clk 0:01:10.6]} 24. c4 {[%clk 0:01:09.8]} 24... Nxe3
{[%clk 0:01:09.7]} 25. Ra7+ {[%clk 0:00:58.7]} 25... Ke6 {[%clk 0:01:08.2]} 26.
Kxe3 {[%clk 0:00:42.2]} 26... Be7 {[%clk 0:01:07.6]} 27. Nc7+ {[%clk 0:00:38.8]}
27... Kf5 {[%clk 0:01:07.3]} 28. Ra5+ {[%clk 0:00:32.1]} 28... Kf6 {[%clk
0:00:49.4]} 29. Nd5+ {[%clk 0:00:31.6]} 29... Ke6 {[%clk 0:00:49.5]} 30. Ra7
{[%clk 0:00:32.2]} 30... Bg5+ {[%clk 0:00:40.5]} 31. f4 {[%clk 0:00:32.2]} 31...
Bf6 {[%clk 0:00:40.8]} 32. g4 {[%clk 0:00:27.1]} 32... Bxb2 {[%clk 0:00:30.9]}
33. Re7# {[%clk 0:00:23.8]} 1-0

[Event "*** Titled Tuesday Blitz"]
[Site "Chess.com"]
[Date "2020.04.28"]
[Round "7"]
[White "Sashadav97"]
[Black "Tesla37"]
[Result "0-1"]
[WhiteElo "2742"]
[BlackElo "2884"]
[TimeControl "180+1"]
[EndTime "11:17:40 PDT"]
[Termination "Tesla37 won by resignation"]

1. d4 {[%clk 0:03:00.5]} 1... Nf6 {[%clk 0:02:58.9]} 2. c4 {[%clk 0:03:00.6]}
2... d6 {[%clk 0:02:58]} 3. Nc3 {[%clk 0:02:58.5]} 3... Nbd7 {[%clk 0:02:57.9]}
4. Nf3 {[%clk 0:02:57.9]} 4... e5 {[%clk 0:02:57.7]} 5. Bg5 {[%clk 0:02:58.1]}
5... h6 {[%clk 0:02:56.4]} 6. Bh4 {[%clk 0:02:56.3]} 6... Be7 {[%clk 0:02:54.3]}
7. e3 {[%clk 0:02:51.1]} 7... c6 {[%clk 0:02:54]} 8. Be2 {[%clk 0:02:48.8]} 8...
O-O {[%clk 0:02:52.8]} 9. O-O {[%clk 0:02:48.1]} 9... Re8 {[%clk 0:02:50.8]} 10.
Qc2 {[%clk 0:02:43.6]} 10... Qc7 {[%clk 0:02:49.1]} 11. Rad1 {[%clk 0:02:41.3]}
11... b6 {[%clk 0:02:48.6]} 12. Kh1 {[%clk 0:02:25.7]} 12... Bb7 {[%clk
0:02:47.6]} 13. c5 {[%clk 0:02:23.1]} 13... dxc5 {[%clk 0:02:29.5]} 14. dxe5
{[%clk 0:02:22.6]} 14... Nxe5 {[%clk 0:02:29.3]} 15. Bg3 {[%clk 0:01:08.9]}
15... Bd6 {[%clk 0:02:27.6]} 16. Nh4 {[%clk 0:01:09.1]} 16... Rad8 {[%clk
0:02:02.4]} 17. Nf5 {[%clk 0:01:08.9]} 17... Bf8 {[%clk 0:02:02.3]} 18. Bh4
{[%clk 0:01:08]} 18... Rxd1 {[%clk 0:01:56.6]} 19. Bxd1 {[%clk 0:01:06.2]} 19...
Ba6 {[%clk 0:01:49.6]} 20. Be2 {[%clk 0:01:02.4]} 20... Bxe2 {[%clk 0:01:49.2]}
21. Qxe2 {[%clk 0:01:02.6]} 21... Ned7 {[%clk 0:01:49.1]} 22. Bg3 {[%clk
0:00:59.7]} 22... Ne5 {[%clk 0:01:41.9]} 23. Rd1 {[%clk 0:00:59.6]} 23... Qc8
{[%clk 0:01:37.7]} 24. Nd6 {[%clk 0:00:54.2]} 24... Bxd6 {[%clk 0:01:36.7]} 25.
Rxd6 {[%clk 0:00:55.1]} 25... Re6 {[%clk 0:01:28.7]} 26. Rxe6 {[%clk 0:00:49.7]}
26... Qxe6 {[%clk 0:01:28]} 27. Qa6 {[%clk 0:00:48.5]} 27... Ned7 {[%clk
0:01:20.3]} 28. Qxa7 {[%clk 0:00:46.4]} 28... Kh7 {[%clk 0:01:15.9]} 29. h3
{[%clk 0:00:46.5]} 29... b5 {[%clk 0:01:09.5]} 30. Qa5 {[%clk 0:00:34.9]} 30...
Qc4 {[%clk 0:01:07.2]} 31. Kh2 {[%clk 0:00:33.8]} 31... b4 {[%clk 0:01:04.6]}
32. Na4 {[%clk 0:00:33.4]} 32... Qxa2 {[%clk 0:01:02.4]} 33. Qa6 {[%clk
0:00:26.6]} 33... Qd5 {[%clk 0:00:57.5]} 34. Nb6 {[%clk 0:00:16.6]} 34... Nxb6
{[%clk 0:00:56.2]} 35. Qxb6 {[%clk 0:00:17.5]} 35... Ne4 {[%clk 0:00:56]} 36. f3
{[%clk 0:00:10.9]} 36... Nxg3 {[%clk 0:00:53.8]} 37. Kxg3 {[%clk 0:00:11.4]}
37... Qe5+ {[%clk 0:00:54.3]} 0-1

[Event "*** Titled Tuesday Blitz"]
[Site "Chess.com"]
[Date "2020.04.28"]
[Round "7"]
[White "petrkostenko"]
[Black "ElGasanov"]
[Result "0-1"]
[WhiteElo "2331"]
[BlackElo "2737"]
[TimeControl "180+1"]
[EndTime "11:17:44 PDT"]
[Termination "ElGasanov won on time"]

1. e4 {[%clk 0:03:00.9]} 1... c5 {[%clk 0:02:58.7]} 2. Nf3 {[%clk 0:03:00.9]}
2... Nc6 {[%clk 0:02:59.1]} 3. Bb5 {[%clk 0:03:00.3]} 3... Nf6 {[%clk
0:02:59.5]} 4. Qe2 {[%clk 0:02:50.1]} 4... g6 {[%clk 0:02:47.9]} 5. O-O {[%clk
0:02:47.7]} 5... Bg7 {[%clk 0:02:47.8]} 6. c3 {[%clk 0:02:44.7]} 6... O-O {[%clk
0:02:39.1]} 7. d4 {[%clk 0:02:42.1]} 7... cxd4 {[%clk 0:02:37.3]} 8. cxd4 {[%clk
0:02:41.4]} 8... d5 {[%clk 0:02:37.7]} 9. e5 {[%clk 0:02:41.5]} 9... Ne4 {[%clk
0:02:38]} 10. Nc3 {[%clk 0:02:41.9]} 10... Bg4 {[%clk 0:02:30.6]} 11. Rd1 {[%clk
0:02:28.6]} 11... Bf5 {[%clk 0:02:06.7]} 12. Nh4 {[%clk 0:02:20.5]} 12... Nxc3
{[%clk 0:01:54.9]} 13. bxc3 {[%clk 0:02:19.7]} 13... Bd7 {[%clk 0:01:55.6]} 14.
f4 {[%clk 0:01:47.9]} 14... Rc8 {[%clk 0:01:47]} 15. Bd3 {[%clk 0:01:39.7]}
15... e6 {[%clk 0:01:39.5]} 16. Qe1 {[%clk 0:01:29.8]} 16... Na5 {[%clk
0:01:36.5]} 17. Ba3 {[%clk 0:01:18.4]} 17... Re8 {[%clk 0:01:36.7]} 18. Rab1
{[%clk 0:00:42]} 18... b6 {[%clk 0:01:21.8]} 19. g4 {[%clk 0:00:27.6]} 19... Nc4
{[%clk 0:01:19.2]} 20. Bc1 {[%clk 0:00:26.6]} 20... f5 {[%clk 0:01:04.3]} 21.
gxf5 {[%clk 0:00:20.3]} 21... exf5 {[%clk 0:01:01.9]} 22. Nf3 {[%clk 0:00:17.5]}
22... Nd6 {[%clk 0:01:01.7]} 23. Ba6 {[%clk 0:00:14.7]} 23... Rc7 {[%clk
0:00:54.3]} 24. Be3 {[%clk 0:00:10.7]} 24... Ne4 {[%clk 0:00:53.8]} 25. Rdc1
{[%clk 0:00:11.3]} 25... Bf8 {[%clk 0:00:46.7]} 26. c4 {[%clk 0:00:09.7]} 26...
Ba3 {[%clk 0:00:41.7]} 27. cxd5 {[%clk 0:00:06.7]} 27... Bxc1 {[%clk 0:00:41.4]}
28. Rxc1 {[%clk 0:00:06.4]} 28... Bc8 {[%clk 0:00:37.8]} 0-1

[Event "*** Titled Tuesday Blitz"]
[Site "Chess.com"]
[Date "2020.04.28"]
[Round "7"]
[White "TregubovP"]
[Black "Semen_Khanin"]
[Result "0-1"]
[WhiteElo "2510"]
[BlackElo "2706"]
[TimeControl "180+1"]
[EndTime "11:17:45 PDT"]
[Termination "Semen_Khanin won by resignation"]

1. e4 {[%clk 0:03:00.9]} 1... e5 {[%clk 0:02:57.1]} 2. Nf3 {[%clk 0:03:00.2]}
2... Nc6 {[%clk 0:02:57.4]} 3. Bb5 {[%clk 0:02:59.9]} 3... a6 {[%clk 0:02:57]}
4. Ba4 {[%clk 0:03:00.1]} 4... b5 {[%clk 0:02:56.1]} 5. Bb3 {[%clk 0:02:59]}
5... g6 {[%clk 0:02:56.8]} 6. d4 {[%clk 0:02:49.9]} 6... exd4 {[%clk 0:02:56.5]}
7. Bg5 {[%clk 0:02:43.1]} 7... Be7 {[%clk 0:02:52.4]} 8. h4 {[%clk 0:02:28.6]}
8... h6 {[%clk 0:02:45.3]} 9. Bf4 {[%clk 0:02:23.6]} 9... Bf6 {[%clk 0:02:42.2]}
10. e5 {[%clk 0:02:20.3]} 10... Bg7 {[%clk 0:02:13.3]} 11. O-O {[%clk
0:02:14.3]} 11... Nge7 {[%clk 0:02:13.1]} 12. Nbd2 {[%clk 0:02:00.4]} 12... Bb7
{[%clk 0:02:02.1]} 13. Re1 {[%clk 0:01:58.4]} 13... Nf5 {[%clk 0:01:52.3]} 14.
Ne4 {[%clk 0:01:58.2]} 14... O-O {[%clk 0:01:44.5]} 15. Nc5 {[%clk 0:01:53.5]}
15... Bc8 {[%clk 0:01:38]} 16. h5 {[%clk 0:01:37.2]} 16... g5 {[%clk 0:01:34.4]}
17. Bh2 {[%clk 0:01:26.8]} 17... g4 {[%clk 0:01:28.6]} 18. Nd2 {[%clk
0:01:10.2]} 18... g3 {[%clk 0:01:25.5]} 19. fxg3 {[%clk 0:01:08.7]} 19... Ne3
{[%clk 0:01:21.9]} 20. Qf3 {[%clk 0:00:35.4]} 20... Rb8 {[%clk 0:01:16.3]} 21.
g4 {[%clk 0:00:30.2]} 21... Nxe5 {[%clk 0:01:12.6]} 22. Bxe5 {[%clk 0:00:24.3]}
22... Bxe5 {[%clk 0:01:12.7]} 23. Nd3 {[%clk 0:00:22.6]} 23... d6 {[%clk
0:01:08.2]} 24. Nxe5 {[%clk 0:00:15.8]} 24... dxe5 {[%clk 0:01:07.9]} 25. Qe4
{[%clk 0:00:14.8]} 25... Qg5 {[%clk 0:01:03.4]} 26. Nf3 {[%clk 0:00:11.1]} 26...
Qxg4 {[%clk 0:01:03.1]} 27. Rxe3 {[%clk 0:00:11.3]} 27... dxe3 {[%clk 0:01:02]}
28. Qxe3 {[%clk 0:00:11.1]} 28... Bb7 {[%clk 0:00:55.7]} 29. Rf1 {[%clk
0:00:07.6]} 29... Bxf3 {[%clk 0:00:41.8]} 30. Rxf3 {[%clk 0:00:07.1]} 30... Qd4
{[%clk 0:00:42]} 31. Qxd4 {[%clk 0:00:05.7]} 31... exd4 {[%clk 0:00:42.2]} 0-1

[Event "*** Titled Tuesday Blitz"]
[Site "Chess.com"]
[Date "2020.04.28"]
[Round "7"]
[White "MarcoRiehle"]
[Black "Ave_Mariia"]
[Result "1-0"]
[WhiteElo "2558"]
[BlackElo "2289"]
[TimeControl "180+1"]
[EndTime "11:17:45 PDT"]
[Termination "MarcoRiehle won by resignation"]

1. e4 {[%clk 0:03:00.9]} 1... c5 {[%clk 0:02:59.7]} 2. a3 {[%clk 0:03:00.9]}
2... e5 {[%clk 0:02:56.1]} 3. Nc3 {[%clk 0:03:00.5]} 3... Nc6 {[%clk 0:02:55.4]}
4. Bc4 {[%clk 0:02:57.4]} 4... d6 {[%clk 0:02:51.4]} 5. d3 {[%clk 0:02:56.6]}
5... Be7 {[%clk 0:02:43.1]} 6. f4 {[%clk 0:02:55.8]} 6... Nf6 {[%clk 0:02:41.4]}
7. Nf3 {[%clk 0:02:53.5]} 7... O-O {[%clk 0:02:40.8]} 8. O-O {[%clk 0:02:51.9]}
8... Bg4 {[%clk 0:02:40]} 9. h3 {[%clk 0:02:51.7]} 9... Bxf3 {[%clk 0:02:39.5]}
10. Qxf3 {[%clk 0:02:52.6]} 10... Nd4 {[%clk 0:02:39.9]} 11. Qf2 {[%clk
0:02:51.8]} 11... Qd7 {[%clk 0:02:17.5]} 12. Nd5 {[%clk 0:02:48.1]} 12... b5
{[%clk 0:02:14.4]} 13. Nxf6+ {[%clk 0:02:46.1]} 13... Bxf6 {[%clk 0:02:13.8]}
14. Bd5 {[%clk 0:02:47]} 14... Rae8 {[%clk 0:02:11.8]} 15. f5 {[%clk 0:02:45]}
15... Kh8 {[%clk 0:01:50.4]} 16. g4 {[%clk 0:02:43.5]} 16... g6 {[%clk
0:01:22.2]} 17. g5 {[%clk 0:02:41.5]} 17... Bd8 {[%clk 0:01:14.7]} 18. f6 {[%clk
0:02:37.7]} 18... Qxh3 {[%clk 0:01:11.7]} 19. Qg2 {[%clk 0:02:32.8]} 19... Qxg2+
{[%clk 0:01:10.7]} 20. Kxg2 {[%clk 0:02:33.7]} 20... Nxc2 {[%clk 0:01:10.7]} 21.
Rb1 {[%clk 0:02:30.8]} 21... Bb6 {[%clk 0:01:00.1]} 22. Rh1 {[%clk 0:02:21.9]}
22... h5 {[%clk 0:00:57]} 23. gxh6 {[%clk 0:02:20]} 23... Kh7 {[%clk 0:00:57.3]}
24. Bd2 {[%clk 0:02:15.9]} 24... Rc8 {[%clk 0:00:53.3]} 25. Rbc1 {[%clk
0:02:01.6]} 25... Nd4 {[%clk 0:00:52.8]} 26. Be3 {[%clk 0:01:53.5]} 26... c4
{[%clk 0:00:29.2]} 27. dxc4 {[%clk 0:01:51.4]} 27... Ne2 {[%clk 0:00:26.7]} 28.
Rc2 {[%clk 0:01:35]} 28... Bxe3 {[%clk 0:00:21.7]} 29. Rxe2 {[%clk 0:01:34.6]}
29... Bxh6 {[%clk 0:00:21.8]} 30. Kf3 {[%clk 0:01:32.6]} 30... g5 {[%clk
0:00:16.5]} 31. Reh2 {[%clk 0:01:31.9]} 31... g4+ {[%clk 0:00:16.5]} 32. Ke2
{[%clk 0:01:31.8]} 32... Kg6 {[%clk 0:00:13.8]} 33. Rxh6+ {[%clk 0:01:32.7]}
33... Kg5 {[%clk 0:00:14.2]} 34. R6h5+ {[%clk 0:01:22.8]} 34... Kf4 {[%clk
0:00:13.9]} 35. Rf5+ {[%clk 0:01:20.8]} 35... Kg3 {[%clk 0:00:14.1]} 36. Rg1+
{[%clk 0:01:21.3]} 36... Kh2 {[%clk 0:00:11.2]} 37. Rxg4 {[%clk 0:01:20.3]}
37... Rh8 {[%clk 0:00:11.5]} 38. Bxf7 {[%clk 0:01:18]} 38... bxc4 {[%clk
0:00:09.5]} 39. Rh5+ {[%clk 0:01:16.7]} 39... Rxh5 {[%clk 0:00:09.3]} 40. Bxh5
{[%clk 0:01:17.6]} 40... c3 {[%clk 0:00:08.6]} 41. bxc3 {[%clk 0:01:16.8]} 41...
Rxc3 {[%clk 0:00:09.2]} 42. f7 {[%clk 0:01:17.4]} 42... Rc2+ {[%clk 0:00:08.2]}
43. Kd3 {[%clk 0:01:17.2]} 43... Rf2 {[%clk 0:00:08.4]} 44. Rg5 {[%clk
0:01:12.2]} 1-0

[Event "*** Titled Tuesday Blitz"]
[Site "Chess.com"]
[Date "2020.04.28"]
[Round "7"]
[White "guillembaches"]
[Black "queen_iryna"]
[Result "1-0"]
[WhiteElo "2421"]
[BlackElo "2266"]
[TimeControl "180+1"]
[EndTime "11:17:45 PDT"]
[Termination "guillembaches won by resignation"]

1. e4 {[%clk 0:03:00.9]} 1... d6 {[%clk 0:02:59.4]} 2. d4 {[%clk 0:03:00.2]}
2... Nf6 {[%clk 0:03:00.1]} 3. f3 {[%clk 0:03:00.5]} 3... e5 {[%clk 0:02:57.8]}
4. Ne2 {[%clk 0:03:00.2]} 4... Nbd7 {[%clk 0:02:56.9]} 5. c4 {[%clk 0:03:00.1]}
5... Be7 {[%clk 0:02:55.9]} 6. Nbc3 {[%clk 0:03:00.3]} 6... O-O {[%clk
0:02:55.7]} 7. Be3 {[%clk 0:03:00.4]} 7... c6 {[%clk 0:02:48.2]} 8. Qd2 {[%clk
0:03:00.4]} 8... Re8 {[%clk 0:02:47.6]} 9. g4 {[%clk 0:02:55.4]} 9... h6 {[%clk
0:02:41.2]} 10. d5 {[%clk 0:02:49.8]} 10... cxd5 {[%clk 0:02:26]} 11. cxd5
{[%clk 0:02:44.7]} 11... Nh7 {[%clk 0:02:24.6]} 12. O-O-O {[%clk 0:02:37]} 12...
Bg5 {[%clk 0:02:24]} 13. Kb1 {[%clk 0:02:37]} 13... Nc5 {[%clk 0:02:17.6]} 14.
Nc1 {[%clk 0:02:30.9]} 14... Bd7 {[%clk 0:02:16.8]} 15. Nd3 {[%clk 0:02:28.6]}
15... b5 {[%clk 0:02:10.3]} 16. Nxc5 {[%clk 0:02:23.7]} 16... dxc5 {[%clk
0:02:11.2]} 17. d6 {[%clk 0:02:19.7]} 17... Bc6 {[%clk 0:01:51.1]} 18. Bxb5
{[%clk 0:02:04.7]} 18... Bxb5 {[%clk 0:01:46.7]} 19. Nxb5 {[%clk 0:02:05.6]}
19... Qb6 {[%clk 0:01:41.1]} 20. Nc7 {[%clk 0:01:48.3]} 20... Bxe3 {[%clk
0:01:39.8]} 21. Nxa8 {[%clk 0:01:40.4]} 21... Rxa8 {[%clk 0:01:25.7]} 22. Qxe3
{[%clk 0:01:39.3]} 22... Rb8 {[%clk 0:01:25.8]} 23. Rd2 {[%clk 0:01:33.3]} 23...
Nf8 {[%clk 0:01:25.3]} 24. Rc1 {[%clk 0:01:24]} 24... Nd7 {[%clk 0:01:25.1]} 25.
Qc3 {[%clk 0:01:19.6]} 25... Qa6 {[%clk 0:01:19.7]} 26. Qc4 {[%clk 0:01:13.8]}
26... Qb6 {[%clk 0:01:18.4]} 27. Rcc2 {[%clk 0:01:10.9]} 27... Rb7 {[%clk
0:01:16.4]} 28. h4 {[%clk 0:01:05.9]} 28... Rb8 {[%clk 0:01:14.8]} 29. g5 {[%clk
0:01:05.7]} 29... hxg5 {[%clk 0:01:13.3]} 30. hxg5 {[%clk 0:01:06.6]} 30... g6
{[%clk 0:01:11.2]} 31. b3 {[%clk 0:00:58.3]} 31... Kg7 {[%clk 0:01:10.7]} 32.
Rd5 {[%clk 0:00:52.9]} 32... Rh8 {[%clk 0:01:08.4]} 33. Kb2 {[%clk 0:00:51.5]}
33... Qd8 {[%clk 0:01:04.8]} 34. Rg2 {[%clk 0:00:46.4]} 34... Nb6 {[%clk
0:01:01.8]} 35. Qxc5 {[%clk 0:00:46.5]} 35... Nxd5 {[%clk 0:01:01.8]} 36. Qxd5
{[%clk 0:00:47.4]} 36... Re8 {[%clk 0:00:52]} 37. d7 {[%clk 0:00:47.5]} 37...
Re7 {[%clk 0:00:52.3]} 38. Rd2 {[%clk 0:00:47.1]} 38... Re6 {[%clk 0:00:47.3]}
39. Qb7 {[%clk 0:00:40.8]} 39... Rb6 {[%clk 0:00:34.6]} 40. Qc8 {[%clk
0:00:37.6]} 40... Rb8 {[%clk 0:00:29.9]} 41. Qxb8 {[%clk 0:00:36.9]} 41... Qxb8
{[%clk 0:00:30.8]} 42. d8=Q {[%clk 0:00:37.1]} 1-0